[Event "Early-Titled-Tuesday-Blitz-April-02-2024"]
[Site "Chess.com"]
[Date "2024.04.02"]
[Round "5"]
[White "WiktoriaPOL"]
[Black "wqws"]
[Result "0-1"]
[WhiteElo "2344"]
[BlackElo "2729"]
[TimeControl "180+1"]
[EndTime "8:55:32 PDT"]
[Termination "wqws won by resignation"]

1. c4 {[%clk 0:02:57.9]} 1... Nf6 {[%clk 0:02:59.5]} 2. Nc3 {[%clk 0:02:57]}
2... g6 {[%clk 0:03:00]} 3. g3 {[%clk 0:02:56.8]} 3... Bg7 {[%clk 0:03:00.5]} 4.
Bg2 {[%clk 0:02:56.6]} 4... O-O {[%clk 0:03:01]} 5. e4 {[%clk 0:02:57.1]} 5...
d6 {[%clk 0:02:59.2]} 6. Nge2 {[%clk 0:02:57.5]} 6... c5 {[%clk 0:02:59.7]} 7.
O-O {[%clk 0:02:57.8]} 7... Nc6 {[%clk 0:03:00.2]} 8. d3 {[%clk 0:02:58.4]} 8...
h5 {[%clk 0:02:59.2]} 9. h3 {[%clk 0:02:58.1]} 9... a6 {[%clk 0:02:56.8]} 10.
Be3 {[%clk 0:02:57.5]} 10... Rb8 {[%clk 0:02:56.7]} 11. a4 {[%clk 0:02:57.8]}
11... Bd7 {[%clk 0:02:55.7]} 12. d4 {[%clk 0:02:57.9]} 12... cxd4 {[%clk
0:02:53.8]} 13. Nxd4 {[%clk 0:02:58.8]} 13... Qc8 {[%clk 0:02:50.3]} 14. b3
{[%clk 0:02:52.5]} 14... Bxh3 {[%clk 0:02:48.3]} 15. Rc1 {[%clk 0:02:40.3]}
15... Bxg2 {[%clk 0:02:47.8]} 16. Kxg2 {[%clk 0:02:41.2]} 16... Nxd4 {[%clk
0:02:44.6]} 17. Bxd4 {[%clk 0:02:40.3]} 17... Qe6 {[%clk 0:02:44.8]} 18. Qd3
{[%clk 0:02:34.9]} 18... h4 {[%clk 0:02:42.5]} 19. gxh4 {[%clk 0:02:24.8]} 19...
Nh5 {[%clk 0:02:42.5]} 20. Ne2 {[%clk 0:02:10.5]} 20... Qg4+ {[%clk 0:02:39.7]}
21. Kh2 {[%clk 0:02:07.7]} 21... Qxh4+ {[%clk 0:02:39.1]} 22. Qh3 {[%clk
0:02:06.2]} 22... Qxe4 {[%clk 0:02:34.6]} 23. Bxg7 {[%clk 0:02:01.6]} 23... Kxg7
{[%clk 0:02:34.5]} 24. Qc3+ {[%clk 0:01:57.2]} 24... Nf6 {[%clk 0:02:32.9]} 25.
Ng3 {[%clk 0:01:49.9]} 25... Rh8+ {[%clk 0:02:31.8]} 26. Kg1 {[%clk 0:01:50.1]}
26... Qf4 {[%clk 0:02:26.4]} 27. Kg2 {[%clk 0:01:43.4]} 27... Rh6 {[%clk
0:02:21.4]} 28. Rh1 {[%clk 0:01:39.5]} 28... Rbh8 {[%clk 0:02:21.2]} 29. Rxh6
{[%clk 0:01:35]} 29... Rxh6 {[%clk 0:02:22.1]} 30. Rg1 {[%clk 0:01:30.2]} 30...
Qg4 {[%clk 0:02:17.3]} 31. Kf1 {[%clk 0:01:27.1]} 31... Rh2 {[%clk 0:02:14.9]}
32. Qd3 {[%clk 0:01:09.5]} 32... Qf4 {[%clk 0:02:11.3]} 33. Qc2 {[%clk
0:00:53.7]} 33... Ng4 {[%clk 0:02:08.1]} 34. Qc3+ {[%clk 0:00:29.9]} 34... e5
{[%clk 0:02:00.5]} 35. f3 {[%clk 0:00:26.2]} 35... Ne3+ {[%clk 0:01:57.7]} 36.
Qxe3 {[%clk 0:00:21.6]} 36... Qxe3 {[%clk 0:01:54.3]} 37. Nf5+ {[%clk
0:00:21.7]} 37... Kf6 {[%clk 0:01:52.8]} 38. Nxe3 {[%clk 0:00:22.3]} 38... Rb2
{[%clk 0:01:52.8]} 39. b4 {[%clk 0:00:20.9]} 39... Ke6 {[%clk 0:01:49.1]} 40.
Nd5 {[%clk 0:00:19.2]} 40... Rc2 {[%clk 0:01:46.3]} 41. Nb6 {[%clk 0:00:11.4]}
41... Kf5 {[%clk 0:01:36.6]} 42. Rg2 {[%clk 0:00:10.2]} 42... Rc1+ {[%clk
0:01:35.3]} 43. Kf2 {[%clk 0:00:09.8]} 43... Rb1 {[%clk 0:01:34.8]} 44. b5
{[%clk 0:00:08.3]} 44... a5 {[%clk 0:01:33.7]} 45. Kg3 {[%clk 0:00:07.7]} 45...
Rb3 {[%clk 0:01:32.1]} 46. Rd2 {[%clk 0:00:06.1]} 46... Ke6 {[%clk 0:01:27.3]}
47. Kf2 {[%clk 0:00:04.9]} 47... f5 {[%clk 0:01:27.3]} 48. Nc8 {[%clk
0:00:03.5]} 48... e4 {[%clk 0:01:26.2]} 49. Rxd6+ {[%clk 0:00:03.1]} 49... Ke5
{[%clk 0:01:26.4]} 50. Rd5+ {[%clk 0:00:02.6]} 50... Kf4 {[%clk 0:01:24.9]} 51.
fxe4 {[%clk 0:00:03.2]} 51... fxe4 {[%clk 0:01:25.8]} 52. Rd2 {[%clk 0:00:02.8]}
52... e3+ {[%clk 0:01:25.5]} 53. Ke2 {[%clk 0:00:03]} 53... exd2 {[%clk
0:01:26.4]} 54. Kxd2 {[%clk 0:00:03.4]} 54... g5 {[%clk 0:01:26.2]} 55. c5
{[%clk 0:00:03.8]} 55... g4 {[%clk 0:01:26]} 56. c6 {[%clk 0:00:04.4]} 56...
bxc6 {[%clk 0:01:21.3]} 57. bxc6 {[%clk 0:00:04.8]} 57... Rb4 {[%clk 0:01:15.9]}
58. Nd6 {[%clk 0:00:04.2]} 58... Rd4+ {[%clk 0:01:15.9]} 59. Ke2 {[%clk
0:00:04]} 59... Rxd6 {[%clk 0:01:16.8]} 60. c7 {[%clk 0:00:04.5]} 60... Rc6
{[%clk 0:01:17.7]} 61. Kf2 {[%clk 0:00:02.8]} 61... Rxc7 {[%clk 0:01:17.8]} 0-1

[Event "Early-Titled-Tuesday-Blitz-April-02-2024"]
[Site "Chess.com"]
[Date "2024.04.02"]
[Round "5"]
[White "chess123456s"]
[Black "ccccvhhhj"]
[Result "1-0"]
[WhiteElo "2596"]
[BlackElo "2421"]
[TimeControl "180+1"]
[EndTime "8:55:33 PDT"]
[Termination "chess123456s won on time"]

1. d4 {[%clk 0:03:00.9]} 1... e6 {[%clk 0:02:58.2]} 2. e4 {[%clk 0:03:00.8]}
2... d5 {[%clk 0:02:58.6]} 3. Nc3 {[%clk 0:03:01.6]} 3... Bb4 {[%clk 0:02:58.5]}
4. e5 {[%clk 0:03:01.5]} 4... c5 {[%clk 0:02:58.8]} 5. a3 {[%clk 0:03:01.8]}
5... Bxc3+ {[%clk 0:02:59.6]} 6. bxc3 {[%clk 0:03:02.7]} 6... Ne7 {[%clk
0:03:00.2]} 7. Qg4 {[%clk 0:03:00.9]} 7... Kf8 {[%clk 0:03:00.6]} 8. h4 {[%clk
0:02:58.5]} 8... Qa5 {[%clk 0:02:58.4]} 9. Bd2 {[%clk 0:02:58.5]} 9... Qa4
{[%clk 0:02:59.2]} 10. h5 {[%clk 0:02:54.5]} 10... h6 {[%clk 0:02:58.8]} 11. Rh3
{[%clk 0:02:54.4]} 11... Nbc6 {[%clk 0:02:57.7]} 12. Nf3 {[%clk 0:02:47.2]}
12... b6 {[%clk 0:02:54.9]} 13. Bd3 {[%clk 0:02:22.8]} 13... Ba6 {[%clk
0:02:54.6]} 14. Qf4 {[%clk 0:02:19.2]} 14... Bxd3 {[%clk 0:02:50.3]} 15. cxd3
{[%clk 0:02:20.1]} 15... Rc8 {[%clk 0:02:23.4]} 16. dxc5 {[%clk 0:02:19.5]}
16... Qxf4 {[%clk 0:02:22.4]} 17. Bxf4 {[%clk 0:02:20.4]} 17... bxc5 {[%clk
0:02:23.3]} 18. Rb1 {[%clk 0:02:19.3]} 18... Ke8 {[%clk 0:02:16.2]} 19. Be3
{[%clk 0:02:14.7]} 19... c4 {[%clk 0:01:54.6]} 20. dxc4 {[%clk 0:02:08.6]} 20...
Kd7 {[%clk 0:01:48.8]} 21. cxd5 {[%clk 0:01:47.1]} 21... Nxd5 {[%clk 0:01:48.7]}
22. Bd2 {[%clk 0:01:47.3]} 22... Rb8 {[%clk 0:01:44.1]} 23. Rd1 {[%clk 0:01:47]}
23... Ke7 {[%clk 0:01:27.3]} 24. Rg3 {[%clk 0:01:43.7]} 24... Rhg8 {[%clk
0:01:23.8]} 25. c4 {[%clk 0:01:27.9]} 25... Nb6 {[%clk 0:01:23.2]} 26. Rg4
{[%clk 0:01:21.2]} 26... Na4 {[%clk 0:01:15]} 27. Be3 {[%clk 0:01:07.5]} 27...
Rgd8 {[%clk 0:00:34.1]} 28. Rxd8 {[%clk 0:01:00.7]} 28... Nxd8 {[%clk
0:00:34.5]} 29. Rxg7 {[%clk 0:00:54.3]} 29... Rb1+ {[%clk 0:00:35.1]} 30. Kd2
{[%clk 0:00:50.3]} 30... Nc6 {[%clk 0:00:19.6]} 31. g4 {[%clk 0:00:47.3]} 31...
Rb2+ {[%clk 0:00:18.8]} 32. Kd3 {[%clk 0:00:31.7]} 32... Rb3+ {[%clk 0:00:14.6]}
33. Ke2 {[%clk 0:00:31.6]} 33... Nc3+ {[%clk 0:00:14.1]} 34. Kf1 {[%clk
0:00:28.8]} 34... Ne4 {[%clk 0:00:11]} 35. g5 {[%clk 0:00:25.6]} 35... hxg5
{[%clk 0:00:09.8]} 36. h6 {[%clk 0:00:25.9]} 36... Rb8 {[%clk 0:00:02.7]} 37.
Nxg5 {[%clk 0:00:23.3]} 37... Nxg5 {[%clk 0:00:01.2]} 38. Bxg5+ {[%clk
0:00:24.2]} 1-0

[Event "Early-Titled-Tuesday-Blitz-April-02-2024"]
[Site "Chess.com"]
[Date "2024.04.02"]
[Round "5"]
[White "MNyuyu"]
[Black "vladgoncharov"]
[Result "1-0"]
[WhiteElo "2402"]
[BlackElo "2571"]
[TimeControl "180+1"]
[EndTime "8:55:33 PDT"]
[Termination "MNyuyu won on time"]

1. d4 {[%clk 0:03:00.9]} 1... Nf6 {[%clk 0:02:56.8]} 2. Nf3 {[%clk 0:03:01.4]}
2... e6 {[%clk 0:02:52.4]} 3. Bg5 {[%clk 0:03:01.1]} 3... c5 {[%clk 0:02:51.5]}
4. e3 {[%clk 0:03:01.2]} 4... Qb6 {[%clk 0:02:44.2]} 5. Bxf6 {[%clk 0:03:00.4]}
5... Qxb2 {[%clk 0:02:25.5]} 6. Nbd2 {[%clk 0:03:00.8]} 6... gxf6 {[%clk
0:02:22.4]} 7. Bd3 {[%clk 0:02:57.2]} 7... cxd4 {[%clk 0:02:19]} 8. exd4 {[%clk
0:02:56.5]} 8... Nc6 {[%clk 0:02:18.7]} 9. d5 {[%clk 0:02:50.1]} 9... Nb4 {[%clk
0:02:14.3]} 10. dxe6 {[%clk 0:02:46.8]} 10... Nxd3+ {[%clk 0:01:58.5]} 11. cxd3
{[%clk 0:02:46.1]} 11... dxe6 {[%clk 0:01:58.7]} 12. O-O {[%clk 0:02:44.5]}
12... Be7 {[%clk 0:01:43.7]} 13. Qe2 {[%clk 0:02:14.6]} 13... O-O {[%clk
0:01:33.4]} 14. Rab1 {[%clk 0:02:08.7]} 14... Qxa2 {[%clk 0:01:31.9]} 15. Qe4
{[%clk 0:01:56.6]} 15... Qd5 {[%clk 0:01:26.5]} 16. Qh4 {[%clk 0:01:25.8]} 16...
b6 {[%clk 0:00:38.8]} 17. Ne4 {[%clk 0:01:22.1]} 17... Qf5 {[%clk 0:00:38.6]}
18. Ng3 {[%clk 0:01:17.5]} 18... Qg6 {[%clk 0:00:35.1]} 19. Qa4 {[%clk
0:00:51.1]} 19... Bb7 {[%clk 0:00:31.9]} 20. Qd7 {[%clk 0:00:50.3]} 20... Bxf3
{[%clk 0:00:31.1]} 21. gxf3 {[%clk 0:00:45.1]} 21... Bc5 {[%clk 0:00:31.1]} 22.
Kh1 {[%clk 0:00:44]} 22... Kh8 {[%clk 0:00:31.3]} 23. Rg1 {[%clk 0:00:43.8]}
23... a5 {[%clk 0:00:28.4]} 24. Ne4 {[%clk 0:00:40]} 24... Qf5 {[%clk
0:00:28.2]} 25. Rg3 {[%clk 0:00:38.5]} 25... Rad8 {[%clk 0:00:24.6]} 26. Qb7
{[%clk 0:00:34.2]} 26... Rxd3 {[%clk 0:00:23.7]} 27. Nxc5 {[%clk 0:00:24.1]}
27... bxc5 {[%clk 0:00:21.1]} 28. Qe7 {[%clk 0:00:20.9]} 28... Rdd8 {[%clk
0:00:20.7]} 29. Rbg1 {[%clk 0:00:20]} 29... c4 {[%clk 0:00:20.3]} 30. Qa3 {[%clk
0:00:16.2]} 30... Rc8 {[%clk 0:00:20.2]} 31. Qc3 {[%clk 0:00:15.4]} 31... Qe5
{[%clk 0:00:20.6]} 32. Qd2 {[%clk 0:00:14.5]} 32... c3 {[%clk 0:00:20.7]} 33.
Qh6 {[%clk 0:00:14.6]} 33... Rg8 {[%clk 0:00:12]} 34. Qxh7+ {[%clk 0:00:14.3]}
1-0

[Event "Early-Titled-Tuesday-Blitz-April-02-2024"]
[Site "Chess.com"]
[Date "2024.04.02"]
[Round "5"]
[White "only_strong_moves"]
[Black "mishanick"]
[Result "1-0"]
[WhiteElo "2734"]
[BlackElo "3026"]
[TimeControl "180+1"]
[EndTime "8:55:37 PDT"]
[Termination "only_strong_moves won on time"]

1. Nc3 {[%clk 0:03:00.9]} 1... d5 {[%clk 0:03:00]} 2. e4 {[%clk 0:03:01]} 2...
c6 {[%clk 0:03:00.5]} 3. d4 {[%clk 0:03:00.8]} 3... dxe4 {[%clk 0:02:57.9]} 4.
Nxe4 {[%clk 0:03:01.7]} 4... Bf5 {[%clk 0:02:57.7]} 5. Ng3 {[%clk 0:03:02]} 5...
Bg6 {[%clk 0:02:57.7]} 6. h4 {[%clk 0:03:02.6]} 6... h6 {[%clk 0:02:57.4]} 7.
Nf3 {[%clk 0:03:03.4]} 7... Nd7 {[%clk 0:02:56.2]} 8. h5 {[%clk 0:03:04]} 8...
Bh7 {[%clk 0:02:56.5]} 9. Bd3 {[%clk 0:03:04.7]} 9... Bxd3 {[%clk 0:02:56.8]}
10. Qxd3 {[%clk 0:03:05.6]} 10... e6 {[%clk 0:02:57]} 11. Bd2 {[%clk 0:03:06]}
11... Ngf6 {[%clk 0:02:56.9]} 12. O-O-O {[%clk 0:03:06.6]} 12... Bd6 {[%clk
0:02:56.8]} 13. Ne4 {[%clk 0:03:06.3]} 13... Nxe4 {[%clk 0:02:56.8]} 14. Qxe4
{[%clk 0:03:07.2]} 14... Nf6 {[%clk 0:02:56.6]} 15. Qe2 {[%clk 0:03:07.7]} 15...
Qb6 {[%clk 0:02:56.3]} 16. Ne5 {[%clk 0:02:51.4]} 16... Qxd4 {[%clk 0:02:45.6]}
17. Nc4 {[%clk 0:02:41.5]} 17... Bf4 {[%clk 0:02:27.1]} 18. g3 {[%clk
0:02:31.8]} 18... Bxd2+ {[%clk 0:02:11.9]} 19. Rxd2 {[%clk 0:02:32.7]} 19... Qg4
{[%clk 0:02:10.8]} 20. Nd6+ {[%clk 0:02:25.7]} 20... Ke7 {[%clk 0:02:11]} 21. f3
{[%clk 0:02:25.4]} 21... Qb4 {[%clk 0:02:04.2]} 22. a3 {[%clk 0:02:21.4]} 22...
Qb6 {[%clk 0:02:00.2]} 23. Re1 {[%clk 0:02:12.5]} 23... Rhd8 {[%clk 0:01:52.8]}
24. Qe5 {[%clk 0:01:42.9]} 24... Kf8 {[%clk 0:01:51.3]} 25. g4 {[%clk 0:01:35]}
25... Nh7 {[%clk 0:01:28.3]} 26. f4 {[%clk 0:01:15.9]} 26... Nf6 {[%clk
0:00:35.1]} 27. g5 {[%clk 0:00:59.6]} 27... Ng4 {[%clk 0:00:35.5]} 28. Qc3
{[%clk 0:00:55.7]} 28... c5 {[%clk 0:00:24.9]} 29. gxh6 {[%clk 0:00:47.5]} 29...
Nxh6 {[%clk 0:00:24.5]} 30. Rg1 {[%clk 0:00:33.1]} 30... f6 {[%clk 0:00:23.6]}
31. Rxg7 {[%clk 0:00:18]} 31... e5 {[%clk 0:00:17.7]} 32. Rh7 {[%clk 0:00:10.5]}
32... Rxd6 {[%clk 0:00:16.5]} 33. Rxh6 {[%clk 0:00:10.5]} 33... Rad8 {[%clk
0:00:12.2]} 34. Rh8+ {[%clk 0:00:10.5]} 34... Ke7 {[%clk 0:00:12.4]} 35. Rh7+
{[%clk 0:00:10.2]} 35... Ke8 {[%clk 0:00:08.7]} 36. Qg3 {[%clk 0:00:10.6]} 1-0

[Event "Early-Titled-Tuesday-Blitz-April-02-2024"]
[Site "Chess.com"]
[Date "2024.04.02"]
[Round "5"]
[White "Gennady_Kozlov"]
[Black "Onischuk_V"]
[Result "0-1"]
[WhiteElo "2623"]
[BlackElo "2825"]
[TimeControl "180+1"]
[EndTime "8:55:37 PDT"]
[Termination "Onischuk_V won by resignation"]

1. b3 {[%clk 0:02:59.4]} 1... Nf6 {[%clk 0:02:58.9]} 2. Bb2 {[%clk 0:02:59]}
2... g6 {[%clk 0:02:56.3]} 3. e3 {[%clk 0:02:58.6]} 3... Bg7 {[%clk 0:02:56.4]}
4. f4 {[%clk 0:02:57.4]} 4... O-O {[%clk 0:02:56.7]} 5. Nf3 {[%clk 0:02:55.9]}
5... d6 {[%clk 0:02:57.3]} 6. Be2 {[%clk 0:02:55.2]} 6... Nc6 {[%clk 0:02:56.3]}
7. O-O {[%clk 0:02:55.7]} 7... e5 {[%clk 0:02:56.3]} 8. fxe5 {[%clk 0:02:54.6]}
8... Ng4 {[%clk 0:02:55.1]} 9. Nc3 {[%clk 0:02:54.1]} 9... Ngxe5 {[%clk
0:02:53.8]} 10. Nxe5 {[%clk 0:02:54.1]} 10... dxe5 {[%clk 0:02:53.8]} 11. Bc4
{[%clk 0:02:51.1]} 11... Qe7 {[%clk 0:02:43.3]} 12. Qe2 {[%clk 0:02:47.4]} 12...
Be6 {[%clk 0:02:42]} 13. d3 {[%clk 0:02:44.8]} 13... a6 {[%clk 0:02:35.6]} 14.
a4 {[%clk 0:02:42.8]} 14... Rfd8 {[%clk 0:02:34.2]} 15. Rab1 {[%clk 0:02:40.4]}
15... h6 {[%clk 0:02:29.8]} 16. Qf3 {[%clk 0:02:35.8]} 16... Rd7 {[%clk
0:01:29.2]} 17. Bxe6 {[%clk 0:02:28.5]} 17... Qxe6 {[%clk 0:01:29.5]} 18. Ne4
{[%clk 0:02:26.5]} 18... Qe7 {[%clk 0:01:29]} 19. Ra1 {[%clk 0:02:24.7]} 19...
f5 {[%clk 0:01:21.4]} 20. Ba3 {[%clk 0:02:14.3]} 20... fxe4 {[%clk 0:01:21.3]}
21. Qxe4 {[%clk 0:02:15.2]} 21... Qe6 {[%clk 0:01:19.8]} 22. Rf3 {[%clk
0:02:14.7]} 22... Rf7 {[%clk 0:01:15.1]} 23. Raf1 {[%clk 0:02:09.9]} 23... Rxf3
{[%clk 0:01:14.6]} 24. Rxf3 {[%clk 0:02:10.8]} 24... Rd8 {[%clk 0:01:13]} 25. d4
{[%clk 0:02:06]} 25... Qd7 {[%clk 0:00:47.3]} 26. Qxg6 {[%clk 0:01:53.4]} 26...
exd4 {[%clk 0:00:47.4]} 27. Qg3 {[%clk 0:01:35.9]} 27... dxe3 {[%clk 0:00:44.7]}
28. Rxe3 {[%clk 0:01:35.9]} 28... Qd1+ {[%clk 0:00:37.2]} 29. Re1 {[%clk
0:01:35.2]} 29... Qxc2 {[%clk 0:00:35.5]} 30. Qg4 {[%clk 0:01:26.6]} 30... Qxb3
{[%clk 0:00:33.2]} 31. Bc1 {[%clk 0:01:24.8]} 31... Kh8 {[%clk 0:00:20.5]} 32.
h4 {[%clk 0:01:19.1]} 32... Qc3 {[%clk 0:00:19.9]} 33. Qe2 {[%clk 0:01:12.3]}
33... Nd4 {[%clk 0:00:18.2]} 34. Qe7 {[%clk 0:01:09.6]} 34... Nc6 {[%clk
0:00:16.5]} 35. Qe2 {[%clk 0:01:08.6]} 35... Qd4+ {[%clk 0:00:16.7]} 36. Be3
{[%clk 0:01:07.1]} 36... Qxh4 {[%clk 0:00:16.9]} 37. Bf2 {[%clk 0:01:06.6]}
37... Qxa4 {[%clk 0:00:16]} 38. Qh5 {[%clk 0:01:04.1]} 38... Qf4 {[%clk
0:00:14.4]} 39. g3 {[%clk 0:00:58.9]} 39... Qg5 {[%clk 0:00:14.3]} 40. Qh3
{[%clk 0:00:50.3]} 40... Ne5 {[%clk 0:00:14]} 41. Re4 {[%clk 0:00:45.9]} 41...
Qg6 {[%clk 0:00:12.8]} 42. Rf4 {[%clk 0:00:43.4]} 42... Nd3 {[%clk 0:00:11.8]}
43. Rg4 {[%clk 0:00:42]} 43... Qf6 {[%clk 0:00:11.8]} 44. Be3 {[%clk 0:00:40.1]}
44... Ne5 {[%clk 0:00:12]} 45. Rf4 {[%clk 0:00:39.4]} 45... Rd1+ {[%clk
0:00:12.5]} 46. Kg2 {[%clk 0:00:38.1]} 46... Qc6+ {[%clk 0:00:12.6]} 47. Kf2
{[%clk 0:00:30.7]} 47... Qc2+ {[%clk 0:00:11.7]} 0-1

[Event "Early-Titled-Tuesday-Blitz-April-02-2024"]
[Site "Chess.com"]
[Date "2024.04.02"]
[Round "5"]
[White "HATilay"]
[Black "viktorgen2021"]
[Result "0-1"]
[WhiteElo "2598"]
[BlackElo "2499"]
[TimeControl "180+1"]
[EndTime "8:55:38 PDT"]
[Termination "viktorgen2021 won by checkmate"]

1. e4 {[%clk 0:03:00.9]} 1... g6 {[%clk 0:02:56]} 2. d4 {[%clk 0:03:00.2]} 2...
Bg7 {[%clk 0:02:52.9]} 3. Nc3 {[%clk 0:03:00.5]} 3... d6 {[%clk 0:02:53.2]} 4.
Be3 {[%clk 0:02:59.8]} 4... c6 {[%clk 0:02:51.5]} 5. f3 {[%clk 0:02:59.7]} 5...
Nd7 {[%clk 0:02:49.1]} 6. Qd2 {[%clk 0:02:59.8]} 6... b5 {[%clk 0:02:48.8]} 7.
h4 {[%clk 0:02:59.8]} 7... h5 {[%clk 0:02:48.5]} 8. Nh3 {[%clk 0:02:59.6]} 8...
Nb6 {[%clk 0:02:48.9]} 9. Nf2 {[%clk 0:02:46.7]} 9... Nc4 {[%clk 0:02:48.3]} 10.
Bxc4 {[%clk 0:02:46.6]} 10... bxc4 {[%clk 0:02:49.2]} 11. O-O-O {[%clk
0:02:33.1]} 11... Rb8 {[%clk 0:02:46.7]} 12. Kb1 {[%clk 0:02:24.9]} 12... Nf6
{[%clk 0:02:41]} 13. Ka1 {[%clk 0:02:23.2]} 13... Qb6 {[%clk 0:02:31.9]} 14. Rb1
{[%clk 0:02:22.2]} 14... Qa6 {[%clk 0:02:24.2]} 15. Rhe1 {[%clk 0:01:59.6]}
15... O-O {[%clk 0:02:14.6]} 16. Bh6 {[%clk 0:01:46.5]} 16... e5 {[%clk
0:02:12.8]} 17. Bxg7 {[%clk 0:01:36.8]} 17... Kxg7 {[%clk 0:02:12.3]} 18. dxe5
{[%clk 0:01:32.8]} 18... dxe5 {[%clk 0:02:09.8]} 19. Qg5 {[%clk 0:01:29.3]}
19... Qa5 {[%clk 0:02:03.4]} 20. Re3 {[%clk 0:01:23.9]} 20... Be6 {[%clk
0:01:59.9]} 21. f4 {[%clk 0:01:12.2]} 21... Ng4 {[%clk 0:01:38.6]} 22. Nxg4
{[%clk 0:01:01.5]} 22... Bxg4 {[%clk 0:01:39.5]} 23. f5 {[%clk 0:00:55.8]} 23...
Qc5 {[%clk 0:01:16.9]} 24. Rg3 {[%clk 0:00:42.3]} 24... Qf2 {[%clk 0:01:10.8]}
25. Rxg4 {[%clk 0:00:37]} 25... hxg4 {[%clk 0:01:06.5]} 26. h5 {[%clk
0:00:36.2]} 26... Rh8 {[%clk 0:00:26.5]} 27. hxg6 {[%clk 0:00:19.1]} 27... f6
{[%clk 0:00:26.5]} 28. Qxg4 {[%clk 0:00:17.7]} 28... Qxc2 {[%clk 0:00:22.8]} 29.
Qf3 {[%clk 0:00:08.9]} 29... Rh1 {[%clk 0:00:20.3]} 30. Nd1 {[%clk 0:00:03.8]}
30... Rxb2 {[%clk 0:00:12.8]} 31. Rxb2 {[%clk 0:00:01.6]} 31... Rxd1+ {[%clk
0:00:12.2]} 32. Qxd1 {[%clk 0:00:02.1]} 32... Qxd1+ {[%clk 0:00:12.2]} 33. Rb1
{[%clk 0:00:03]} 33... Qd4+ {[%clk 0:00:12.5]} 34. Rb2 {[%clk 0:00:03.5]} 34...
Kh6 {[%clk 0:00:08.3]} 35. Kb1 {[%clk 0:00:03.7]} 35... Qd1# {[%clk 0:00:08.3]}
0-1

[Event "Early-Titled-Tuesday-Blitz-April-02-2024"]
[Site "Chess.com"]
[Date "2024.04.02"]
[Round "5"]
[White "Maxfan2008"]
[Black "MarijaKuznecova"]
[Result "1-0"]
[WhiteElo "2588"]
[BlackElo "2413"]
[TimeControl "180+1"]
[EndTime "8:55:42 PDT"]
[Termination "Maxfan2008 won by resignation"]

1. d4 {[%clk 0:03:00.9]} 1... Nf6 {[%clk 0:02:59.5]} 2. c4 {[%clk 0:03:00.9]}
2... c5 {[%clk 0:02:59.4]} 3. d5 {[%clk 0:03:00.9]} 3... b5 {[%clk 0:03:00.1]}
4. cxb5 {[%clk 0:03:01.1]} 4... a6 {[%clk 0:03:00.8]} 5. bxa6 {[%clk 0:03:00.3]}
5... g6 {[%clk 0:03:01.3]} 6. Nc3 {[%clk 0:03:00.5]} 6... Bg7 {[%clk 0:03:01.9]}
7. g3 {[%clk 0:03:01]} 7... O-O {[%clk 0:03:02.4]} 8. Bg2 {[%clk 0:03:01.2]}
8... Qa5 {[%clk 0:03:02.7]} 9. Nf3 {[%clk 0:02:58.4]} 9... d6 {[%clk 0:03:01.3]}
10. O-O {[%clk 0:02:57.2]} 10... Bxa6 {[%clk 0:02:58.4]} 11. Ne1 {[%clk
0:02:56.6]} 11... Nbd7 {[%clk 0:02:57.3]} 12. Nc2 {[%clk 0:02:55.8]} 12... Rfb8
{[%clk 0:02:56.3]} 13. Ne3 {[%clk 0:02:53.1]} 13... Ne8 {[%clk 0:02:40.9]} 14.
Qc2 {[%clk 0:02:47.1]} 14... Qb4 {[%clk 0:02:19.3]} 15. Rd1 {[%clk 0:02:08.8]}
15... Nc7 {[%clk 0:02:11.8]} 16. h4 {[%clk 0:01:40.8]} 16... Nb5 {[%clk
0:02:06]} 17. Nxb5 {[%clk 0:01:30.4]} 17... Qxb5 {[%clk 0:02:06.9]} 18. Bf1
{[%clk 0:01:19.6]} 18... c4 {[%clk 0:01:55.7]} 19. Rb1 {[%clk 0:01:17]} 19...
Nc5 {[%clk 0:01:54.8]} 20. Bd2 {[%clk 0:01:06.3]} 20... Bxb2 {[%clk 0:00:49.4]}
21. Nxc4 {[%clk 0:01:01.6]} 21... Qxc4 {[%clk 0:00:45.8]} 22. Rxb2 {[%clk
0:01:01.6]} 22... Rxb2 {[%clk 0:00:38.2]} 23. Qxb2 {[%clk 0:01:02.5]} 23... Qxd5
{[%clk 0:00:37.9]} 24. Bg2 {[%clk 0:00:50.8]} 24... Ne4 {[%clk 0:00:29.9]} 25.
Kh2 {[%clk 0:00:33.3]} 25... f5 {[%clk 0:00:14]} 26. Bh6 {[%clk 0:00:26.1]}
26... Qe5 {[%clk 0:00:14.1]} 27. Qb3+ {[%clk 0:00:16.7]} 27... e6 {[%clk
0:00:08.6]} 28. Bf4 {[%clk 0:00:16.4]} 28... Qf6 {[%clk 0:00:07.2]} 29. Bxe4
{[%clk 0:00:14.2]} 29... fxe4 {[%clk 0:00:08.1]} 30. Rxd6 {[%clk 0:00:14.4]}
30... Bxe2 {[%clk 0:00:07.6]} 31. Rxe6 {[%clk 0:00:14.1]} 31... Qf7 {[%clk
0:00:08]} 32. Qd5 {[%clk 0:00:09.9]} 32... Ra4 {[%clk 0:00:03.1]} 33. Re8+
{[%clk 0:00:07.7]} 33... Kg7 {[%clk 0:00:03.4]} 34. Be5+ {[%clk 0:00:06.1]} 1-0